[Event "3rd FIDE WCCC Blitz G10 2019"]
[Site "Minsk"]
[Date "2019.08.18"]
[Round "8.1"]
[White "Shukhman, Anna"]
[Black "Khamdamova, Afruza"]
[Result "0-1"]
[ECO "C68"]
[WhiteElo "1806"]
[BlackElo "1607"]
[Annotator "NA"]
[PlyCount "108"]
[EventDate "2019.08.18"]
[EventType "swiss"]
[EventCountry "BLR"]
[SourceTitle "playchess.com"]
[Source "ChessBase"]
[SourceQuality "1"]
[TimeControl "300+2"]

1. e4 {[%emt 0:00:00]} e5 {[%emt 0:00:00]} 2. Nf3 {[%emt 0:00:00]} Nc6 {[%emt 0:00:00]} 3. Bb5 {[%emt 0:00:02]} a6 {[%emt 0:00:00]} 4. Bxc6 {[%emt 0:00:01]} dxc6 {[%emt 0:00:01]} 5. O-O {[%emt 0:00:02]} Bg4 {[%emt 0:00:01]} 6. h3 {[%emt 0:00:01]} h5 {[%emt 0:00:01]} 7. d3 {[%emt 0:00:01]} Qf6 {[%emt 0:00:10]} 8. Nbd2 {[%emt 0:00:02]} O-O-O {[%emt 0:00:11]} 9. hxg4 {[%emt 0:00:07]} hxg4 {[%emt 0:00:19]} 10. Nh2 {[%emt 0:00:03]} g3 {[%emt 0:00:30]} 11. Qg4+ {[%emt 0:00:17]} Kb8 {[%emt 0:00:07]} 12. Qxg3 {[%emt 0:00:02]} Bc5 {[%emt 0:00:05]} 13. Nc4 {[%emt 0:00:09]} Re8 {[%emt 0:00:16]} 14. Be3 {[%emt 0:00:04]} Bxe3 {[%emt 0:00:11]} 15. fxe3 {[%emt 0:00:03]} Qh6 {[%emt 0:00:19]} 16. Nxe5 {[%emt 0:00:31]} Qd6 {[%emt 0:00:24]} 17. d4 {[%emt 0:00:17]} f6 {[%emt 0:00:04]} 18. Qxg7 {[%emt 0:00:15]} Rxh2 {[%emt 0:00:58]} 19. Kxh2 {[%emt 0:00:05]} fxe5 {[%emt 0:00:01]} 20. dxe5 {[%emt 0:00:05]} Rxe5 {[%emt 0:00:06]} 21. Rf4 {[%emt 0:00:55]} Ne7 {[%emt 0:00:14]} 22. Qf6 {[%emt 0:00:53]} Re6 {[%emt 0:00:08]} 23. Qh8+ {[%emt 0:00:13]} Nc8 {[%emt 0:00:05]} 24. Qd4 {[%emt 0:00:21]} Rh6+ {[%emt 0:00:06]} 25. Kg1 {[%emt 0:00:03]} Qg6 {[%emt 0:00:15]} 26. Raf1 {[%emt 0:00:09]} Qg3 {[%emt 0:00:15]} 27. Qd2 {[%emt 0:00:26]} Qh2+ {[%emt 0:00:23]} 28. Kf2 {[%emt 0:00:02]} Rg6 {[%emt 0:00:05]} 29. Rg1 {[%emt 0:00:10]} Nd6 {[%emt 0:00:05]} 30. Kf1 {[%emt 0:00:11]} Qg3 {[%emt 0:00:15]} 31. e5 {[%emt 0:00:09]} Nc8 {[%emt 0:00:10]} 32. Qf2 {[%emt 0:00:06]} Qg5 {[%emt 0:00:03]} 33. Rf5 {[%emt 0:00:01]} Qg4 {[%emt 0:00:02]} 34. Qf3 {[%emt 0:00:03]} Qc4+ {[%emt 0:00:01]} 35. Qe2 {[%emt 0:00:04]} Qxa2 {[%emt 0:00:05]} 36. Rf6 {[%emt 0:00:05]} Rg8 {[%emt 0:00:03]} 37. e6 {[%emt 0:00:04]} Qxb2 {[%emt 0:00:01]} 38. Rf3 {[%emt 0:00:07]} Qc1+ {[%emt 0:00:02]} 39. Kf2 {[%emt 0:00:01]} Qa3 {[%emt 0:00:02]} 40. e4 {[%emt 0:00:05]} Qe7 {[%emt 0:00:01]} 41. Qc4 {[%emt 0:00:02]} Nb6 {[%emt 0:00:02]} 42. Qb3 {[%emt 0:00:02]} a5 {[%emt 0:00:01]} 43. Rf7 {[%emt 0:00:03]} Qe8 {[%emt 0:00:02]} 44. e7 {[%emt 0:00:02]} a4 45. Qa2 {[%emt 0:00:02]} c5 {[%emt 0:00:04]} 46. Qe6 {[%emt 0:00:02]} a3 {[%emt 0:00:05]} 47. Ke2 {[%emt 0:00:02]} Nc8 {[%emt 0:00:04]} 48. Rgf1 {[%emt 0:00:02]} Rxg2+ {[%emt 0:00:01]} 49. Kd1 {[%emt 0:00:01]} c4 {[%emt 0:00:05]} 50. Rf8 {[%emt 0:00:03]} a2 {[%emt 0:00:01]} 51. Qe5 {[%emt 0:00:03]} Qd7+ {[%emt 0:00:04]} 52. Kc1 {[%emt 0:00:01]} Qd2+ {[%emt 0:00:01]} 53. Kb2 {[%emt 0:00:01]} Qxc2+ {[%emt 0:00:02]} 54. Ka3 {[%emt 0:00:01]} Qb3# {[%emt 0:00:00]} 0-1

[Event "3rd FIDE WCCC Blitz G10 2019"]
[Site "Minsk"]
[Date "2019.08.18"]
[Round "8.2"]
[White "Satanovskaia, Evgeniia"]
[Black "Maklakova, Naomi"]
[Result "1-0"]
[ECO "D35"]
[WhiteElo "1399"]
[BlackElo "1221"]
[Annotator "NA"]
[PlyCount "116"]
[EventDate "2019.08.18"]
[EventType "swiss"]
[EventCountry "BLR"]
[SourceTitle "playchess.com"]
[Source "ChessBase"]
[SourceQuality "1"]
[TimeControl "300+2"]

1. d4 {[%emt 0:00:00]} d5 {[%emt 0:00:00]} 2. c4 {[%emt 0:00:00]} e6 {[%emt 0:00:01]} 3. Nc3 {[%emt 0:00:01]} Nf6 {[%emt 0:00:01]} 4. cxd5 {[%emt 0:00:00]} Nxd5 5. e4 Nxc3 {[%emt 0:00:04]} 6. bxc3 {[%emt 0:00:02]} c5 {[%emt 0:00:02]} 7. Nf3 {[%emt 0:00:00]} Nc6 {[%emt 0:00:01]} 8. Bb5 cxd4 {[%emt 0:00:03]} 9. cxd4 {[%emt 0:00:08]} Qa5+ {[%emt 0:00:07]} 10. Bd2 {[%emt 0:00:10]} Qxb5 {[%emt 0:00:03]} 11. Rb1 {[%emt 0:00:18]} Qc4 {[%emt 0:00:02]} 12. Qb3 {[%emt 0:00:04]} Qxb3 {[%emt 0:00:11]} 13. Rxb3 {[%emt 0:00:02]} Be7 {[%emt 0:00:02]} 14. O-O {[%emt 0:00:06]} O-O {[%emt 0:00:03]} 15. Rc1 {[%emt 0:00:04]} Rd8 {[%emt 0:00:06]} 16. Be3 {[%emt 0:00:03]} Rb8 {[%emt 0:00:33]} 17. h3 {[%emt 0:00:17]} h6 {[%emt 0:00:02]} 18. Rd1 {[%emt 0:00:10]} Bd7 {[%emt 0:00:13]} 19. Bf4 {[%emt 0:00:16]} Na5 {[%emt 0:00:27]} 20. Bxb8 {[%emt 0:00:36]} Nxb3 {[%emt 0:00:02]} 21. Bg3 {[%emt 0:00:07]} Na5 {[%emt 0:00:07]} 22. Bc7 {[%emt 0:00:02]} Nc6 {[%emt 0:00:08]} 23. Bxd8 {[%emt 0:00:02]} Nxd8 {[%emt 0:00:02]} 24. Rc1 {[%emt 0:00:11]} Bc6 {[%emt 0:00:11]} 25. Re1 {[%emt 0:00:23]} f6 {[%emt 0:00:13]} 26. Re2 {[%emt 0:00:16]} Nf7 {[%emt 0:00:06]} 27. Ne1 {[%emt 0:00:03]} Bb5 {[%emt 0:00:20]} 28. Rb2 {[%emt 0:00:10]} Bc6 {[%emt 0:00:03]} 29. f3 {[%emt 0:00:01]} Nd6 {[%emt 0:00:07]} 30. Rc2 {[%emt 0:00:10]} Nb5 {[%emt 0:00:04]} 31. Rc4 {[%emt 0:00:34]} Kf7 {[%emt 0:00:09]} 32. Kf2 {[%emt 0:00:06]} Na3 {[%emt 0:00:05]} 33. Rc1 {[%emt 0:00:20]} Bb4 {[%emt 0:00:23]} 34. Nd3 {[%emt 0:00:07]} Bd2 {[%emt 0:00:26]} 35. Rd1 {[%emt 0:00:08]} Bc3 {[%emt 0:00:02]} 36. Nc5 {[%emt 0:00:09]} Nb5 {[%emt 0:00:10]} 37. d5 {[%emt 0:00:05]} exd5 {[%emt 0:00:07]} 38. exd5 {[%emt 0:00:01]} Be8 {[%emt 0:00:05]} 39. Nxb7 {[%emt 0:00:09]} Ke7 {[%emt 0:00:20]} 40. d6+ {[%emt 0:00:07]} Kd7 {[%emt 0:00:08]} 41. Nc5+ {[%emt 0:00:05]} Kd8 {[%emt 0:00:02]} 42. Ke3 {[%emt 0:00:17]} Be5 {[%emt 0:00:07]} 43. d7 {[%emt 0:00:06]} Bf7 {[%emt 0:00:15]} 44. Nb7+ {[%emt 0:00:06]} Kc7 {[%emt 0:00:07]} 45. d8=Q+ {[%emt 0:00:01]} Kxb7 {[%emt 0:00:01]} 46. Rd7+ {[%emt 0:00:02]} Kc6 {[%emt 0:00:09]} 47. Qc8+ {[%emt 0:00:06]} Kb6 {[%emt 0:00:07]} 48. Qb7+ {[%emt 0:00:04]} Ka5 {[%emt 0:00:03]} 49. Rxf7 {[%emt 0:00:05]} Nd6 {[%emt 0:00:11]} 50. Qxa7+ {[%emt 0:00:02]} Kb4 {[%emt 0:00:05]} 51. a3+ {[%emt 0:00:06]} Kc4 {[%emt 0:00:05]} 52. Rc7+ {[%emt 0:00:02]} Kd5 {[%emt 0:00:03]} 53. Qc5+ Ke6 54. f4 {[%emt 0:00:11]} Nf5+ {[%emt 0:00:05]} 55. Kf3 {[%emt 0:00:03]} Bxc7 {[%emt 0:00:02]} 56. Qxc7 {[%emt 0:00:03]} Nd4+ {[%emt 0:00:05]} 57. Ke4 {[%emt 0:00:01]} f5+ 58. Kxd4 Kf6 1-0

[Event "3rd FIDE WCCC Blitz G10 2019"]
[Site "Minsk"]
[Date "2019.08.18"]
[Round "8.3"]
[White "Fedorova, Olesya"]
[Black "Ho, Ngoc Vy"]
[Result "0-1"]
[ECO "C26"]
[WhiteElo "1524"]
[BlackElo "1327"]
[Annotator "NA"]
[PlyCount "134"]
[EventDate "2019.08.18"]
[EventType "swiss"]
[EventCountry "BLR"]
[SourceTitle "playchess.com"]
[Source "ChessBase"]
[SourceQuality "1"]
[TimeControl "300+2"]

1. e4 {[%emt 0:00:00]} e5 {[%emt 0:00:00]} 2. Nc3 {[%emt 0:00:02]} Nf6 {[%emt 0:00:00]} 3. f4 {[%emt 0:00:02]} Nc6 {[%emt 0:00:03]} 4. Nf3 {[%emt 0:00:02]} d6 {[%emt 0:00:10]} 5. Bb5 {[%emt 0:00:03]} exf4 {[%emt 0:00:03]} 6. d4 {[%emt 0:00:01]} Bd7 {[%emt 0:00:01]} 7. O-O {[%emt 0:00:05]} Be7 {[%emt 0:00:01]} 8. Bxf4 {[%emt 0:00:02]} O-O {[%emt 0:00:02]} 9. Qd2 {[%emt 0:00:16]} Re8 {[%emt 0:00:06]} 10. Rae1 {[%emt 0:00:01]} a6 {[%emt 0:00:01]} 11. Bd3 {[%emt 0:00:05]} Nb4 {[%emt 0:00:01]} 12. h3 {[%emt 0:00:43]} Nxd3 {[%emt 0:00:03]} 13. cxd3 {[%emt 0:00:02]} h6 {[%emt 0:00:01]} 14. e5 {[%emt 0:00:09]} dxe5 {[%emt 0:00:09]} 15. dxe5 {[%emt 0:00:02]} Nh7 {[%emt 0:00:03]} 16. d4 {[%emt 0:00:04]} Bf5 {[%emt 0:00:04]} 17. Nh2 {[%emt 0:00:31]} Bb4 {[%emt 0:00:02]} 18. Bxh6 {[%emt 0:00:14]} gxh6 {[%emt 0:00:44]} 19. Rxf5 {[%emt 0:00:03]} Qd7 {[%emt 0:00:09]} 20. Rf3 {[%emt 0:00:17]} Re6 {[%emt 0:00:02]} 21. Ng4 {[%emt 0:00:14]} Rf8 {[%emt 0:00:31]} 22. Nxh6+ {[%emt 0:00:11]} Kh8 {[%emt 0:00:01]} 23. Nf5 {[%emt 0:00:14]} Rg6 {[%emt 0:00:07]} 24. Qf2 {[%emt 0:00:32]} Rfg8 {[%emt 0:00:02]} 25. Rg3 {[%emt 0:00:14]} Bxc3 {[%emt 0:00:55]} 26. bxc3 {[%emt 0:00:09]} Qe6 {[%emt 0:00:01]} 27. Rxg6 {[%emt 0:00:14]} Rxg6 {[%emt 0:00:02]} 28. Rf1 {[%emt 0:00:17]} Ng5 {[%emt 0:00:15]} 29. Qh4+ {[%emt 0:00:08]} Kg8 {[%emt 0:00:01]} 30. Nh6+ {[%emt 0:00:12]} Rxh6 {[%emt 0:00:17]} 31. Qxg5+ {[%emt 0:00:01]} Rg6 {[%emt 0:00:01]} 32. Qf5 {[%emt 0:00:12]} Qxa2 {[%emt 0:00:04]} 33. Qf3 {[%emt 0:00:09]} b6 {[%emt 0:00:11]} 34. d5 {[%emt 0:00:02]} Rg7 {[%emt 0:00:03]} 35. Rf2 {[%emt 0:00:05]} Qb1+ {[%emt 0:00:02]} 36. Kh2 {[%emt 0:00:04]} Qg6 {[%emt 0:00:02]} 37. e6 {[%emt 0:00:11]} fxe6 {[%emt 0:00:06]} 38. dxe6 {[%emt 0:00:02]} Qxe6 {[%emt 0:00:13]} 39. Qf8+ {[%emt 0:00:02]} Kh7 {[%emt 0:00:01]} 40. Rf4 {[%emt 0:00:03]} Qd6 {[%emt 0:00:05]} 41. Kh1 {[%emt 0:00:09]} Qxf8 {[%emt 0:00:17]} 42. Rxf8 {[%emt 0:00:01]} Rg3 {[%emt 0:00:01]} 43. Ra8 {[%emt 0:00:04]} a5 {[%emt 0:00:03]} 44. c4 {[%emt 0:00:01]} Rc3 {[%emt 0:00:02]} 45. g4 {[%emt 0:00:07]} Rxh3+ {[%emt 0:00:03]} 46. Kg2 {[%emt 0:00:02]} Rc3 {[%emt 0:00:01]} 47. Kf2 {[%emt 0:00:04]} Rxc4 {[%emt 0:00:00]} 48. Kf3 {[%emt 0:00:01]} a4 {[%emt 0:00:02]} 49. Kg3 {[%emt 0:00:01]} b5 {[%emt 0:00:01]} 50. Kh4 {[%emt 0:00:02]} Rc3 {[%emt 0:00:01]} 51. Kg5 {[%emt 0:00:03]} a3 {[%emt 0:00:02]} 52. Rd8 {[%emt 0:00:05]} a2 {[%emt 0:00:02]} 53. Rd7+ {[%emt 0:00:01]} Kg8 {[%emt 0:00:03]} 54. Rd1 {[%emt 0:00:03]} b4 {[%emt 0:00:06]} 55. Kg6 {[%emt 0:00:01]} Rc6+ {[%emt 0:00:01]} 56. Kf5 {[%emt 0:00:02]} b3 {[%emt 0:00:02]} 57. Ra1 {[%emt 0:00:02]} Ra6 {[%emt 0:00:01]} 58. Rd1 {[%emt 0:00:04]} Rd6 {[%emt 0:00:04]} 59. Re1 {[%emt 0:00:02]} b2 {[%emt 0:00:03]} 60. Re8+ {[%emt 0:00:01]} Kf7 {[%emt 0:00:01]} 61. Rc8 {[%emt 0:00:02]} Rc6 {[%emt 0:00:03]} 62. Ke5 {[%emt 0:00:03]} b1=Q {[%emt 0:00:02]} 63. g5 {[%emt 0:00:02]} a1=Q+ {[%emt 0:00:04]} 64. Kf4 {[%emt 0:00:01]} Qa4+ {[%emt 0:00:01]} 65. Ke3 {[%emt 0:00:01]} Qbb3+ {[%emt 0:00:01]} 66. Kd2 {[%emt 0:00:01]} Qaa2+ {[%emt 0:00:01]} 67. Ke1 {[%emt 0:00:01]} Qbb1# {[%emt 0:00:00]} 0-1

[Event "3rd FIDE WCCC Blitz G10 2019"]
[Site "Minsk"]
[Date "2019.08.18"]
[Round "8.4"]
[White "Nurgaliyeva, Zarina"]
[Black "Huynh, Phuc Minh Phuong"]
[Result "1-0"]
[ECO "C48"]
[WhiteElo "1474"]
[BlackElo "1254"]
[Annotator "NA"]
[PlyCount "57"]
[EventDate "2019.08.18"]
[EventType "swiss"]
[EventCountry "BLR"]
[SourceTitle "playchess.com"]
[Source "ChessBase"]
[SourceQuality "1"]
[TimeControl "300+2"]

1. e4 {[%emt 0:00:00]} e5 {[%emt 0:00:00]} 2. Nf3 {[%emt 0:00:00]} Nc6 {[%emt 0:00:00]} 3. Nc3 {[%emt 0:00:00]} Nf6 {[%emt 0:00:00]} 4. Bb5 {[%emt 0:00:01]} d6 {[%emt 0:00:04]} 5. d4 {[%emt 0:00:02]} exd4 {[%emt 0:00:07]} 6. Nxd4 {[%emt 0:00:01]} Bd7 {[%emt 0:00:01]} 7. Bxc6 {[%emt 0:00:01]} Bxc6 {[%emt 0:00:01]} 8. Qd3 {[%emt 0:00:01]} h6 {[%emt 0:00:09]} 9. O-O {[%emt 0:00:08]} Be7 {[%emt 0:00:03]} 10. Nf5 {[%emt 0:00:01]} Bf8 {[%emt 0:00:22]} 11. Re1 {[%emt 0:00:11]} Qd7 {[%emt 0:00:36]} 12. e5 {[%emt 0:00:06]} Nh7 {[%emt 0:00:06]} 13. exd6+ {[%emt 0:00:02]} Kd8 {[%emt 0:00:05]} 14. dxc7+ {[%emt 0:00:04]} Kxc7 {[%emt 0:00:02]} 15. Qg3+ {[%emt 0:00:05]} Kc8 {[%emt 0:00:13]} 16. Qh3 {[%emt 0:00:35]} Nf6 {[%emt 0:02:54]} 17. Be3 {[%emt 0:01:45]} g6 {[%emt 0:00:30]} 18. Nd4 {[%emt 0:00:02]} Qxh3 19. gxh3 {[%emt 0:00:02]} Bd6 {[%emt 0:00:12]} 20. Nxc6 {[%emt 0:00:05]} bxc6 {[%emt 0:00:01]} 21. Bd4 {[%emt 0:00:03]} Rd8 {[%emt 0:00:11]} 22. Bxf6 {[%emt 0:00:01]} Rd7 {[%emt 0:00:00]} 23. Re8+ {[%emt 0:00:02]} Kb7 {[%emt 0:00:02]} 24. Rxa8 {[%emt 0:00:01]} Kxa8 {[%emt 0:00:00]} 25. Re1 {[%emt 0:00:02]} Kb7 {[%emt 0:00:01]} 26. Ne4 {[%emt 0:00:04]} Bf8 {[%emt 0:00:04]} 27. Bc3 {[%emt 0:00:05]} f5 {[%emt 0:00:03]} 28. Nf6 {[%emt 0:00:09]} Rf7 {[%emt 0:00:04]} 29. Re6 {[%emt 0:00:12]} 1-0

[Event "3rd FIDE WCCC Blitz G10 2019"]
[Site "Minsk"]
[Date "2019.08.18"]
[Round "8.6"]
[White "Sidorenja, Milena"]
[Black "Loviagina, Dariana"]
[Result "1-0"]
[ECO "B21"]
[WhiteElo "1573"]
[BlackElo "1421"]
[Annotator "NA"]
[PlyCount "153"]
[EventDate "2019.08.18"]
[EventType "swiss"]
[EventCountry "BLR"]
[SourceTitle "playchess.com"]
[Source "ChessBase"]
[SourceQuality "1"]
[TimeControl "300+2"]

1. e4 {[%emt 0:00:00]} c5 {[%emt 0:00:00]} 2. d4 {[%emt 0:00:00]} cxd4 {[%emt 0:00:02]} 3. c3 {[%emt 0:00:01]} Nf6 {[%emt 0:00:00]} 4. e5 {[%emt 0:00:02]} Nd5 {[%emt 0:00:01]} 5. cxd4 {[%emt 0:00:01]} Nc6 {[%emt 0:00:02]} 6. Nf3 {[%emt 0:00:06]} d6 {[%emt 0:00:01]} 7. Bc4 {[%emt 0:00:01]} Nb6 {[%emt 0:00:01]} 8. Bb3 {[%emt 0:00:01]} dxe5 {[%emt 0:00:03]} 9. d5 {[%emt 0:00:04]} Nb4 {[%emt 0:00:13]} 10. Nc3 {[%emt 0:00:12]} e6 {[%emt 0:00:06]} 11. O-O {[%emt 0:00:49]} N4xd5 {[%emt 0:00:09]} 12. Nxd5 {[%emt 0:00:03]} Nxd5 {[%emt 0:00:07]} 13. Nxe5 {[%emt 0:00:30]} Bc5 {[%emt 0:00:07]} 14. Ba4+ {[%emt 0:00:12]} Ke7 {[%emt 0:00:10]} 15. Qg4 {[%emt 0:00:11]} Rg8 {[%emt 0:00:17]} 16. Qf3 {[%emt 0:00:29]} f6 {[%emt 0:00:13]} 17. Nd3 {[%emt 0:00:08]} Bd6 {[%emt 0:00:03]} 18. Re1 {[%emt 0:00:16]} Kf7 {[%emt 0:00:09]} 19. Qh5+ {[%emt 0:00:04]} Kf8 {[%emt 0:00:04]} 20. Qxh7 {[%emt 0:00:10]} Qc7 {[%emt 0:00:05]} 21. Qh5 {[%emt 0:00:05]} Bd7 {[%emt 0:00:14]} 22. Bb3 {[%emt 0:00:13]} Be8 {[%emt 0:00:05]} 23. Qh3 {[%emt 0:00:09]} Bf7 {[%emt 0:00:03]} 24. Bd2 {[%emt 0:00:19]} Re8 {[%emt 0:00:08]} 25. Rac1 {[%emt 0:00:02]} Qb8 {[%emt 0:00:01]} 26. Nc5 {[%emt 0:00:22]} Bxc5 {[%emt 0:00:06]} 27. Rxc5 {[%emt 0:00:02]} Qd6 {[%emt 0:00:02]} 28. Rb5 {[%emt 0:00:27]} b6 {[%emt 0:00:05]} 29. Bxd5 {[%emt 0:00:05]} exd5 {[%emt 0:00:06]} 30. Rxe8+ {[%emt 0:00:04]} Bxe8 {[%emt 0:00:02]} 31. Qf3 {[%emt 0:00:04]} Bxb5 {[%emt 0:00:05]} 32. Bf4 {[%emt 0:00:08]} Qe6 {[%emt 0:00:03]} 33. h3 {[%emt 0:00:05]} Bc6 {[%emt 0:00:13]} 34. Qa3+ {[%emt 0:00:03]} Ke8 {[%emt 0:00:04]} 35. Qxa7 {[%emt 0:00:04]} Qd7 {[%emt 0:00:18]} 36. Qxb6 {[%emt 0:00:07]} d4 {[%emt 0:00:04]} 37. Bd2 {[%emt 0:00:15]} Qd5 {[%emt 0:00:14]} 38. Qb8+ {[%emt 0:00:07]} Qd8 {[%emt 0:00:04]} 39. Qb4 {[%emt 0:00:04]} Qd5 {[%emt 0:00:09]} 40. Qb8+ {[%emt 0:00:02]} Kf7 {[%emt 0:00:05]} 41. Qc7+ {[%emt 0:00:03]} Qd7 {[%emt 0:00:04]} 42. Qf4 {[%emt 0:00:03]} Qd5 {[%emt 0:00:11]} 43. Qc7+ {[%emt 0:00:02]} Qd7 {[%emt 0:00:08]} 44. Qf4 {[%emt 0:00:02]} Re8 {[%emt 0:00:07]} 45. b3 {[%emt 0:00:07]} Qd5 {[%emt 0:00:09]} 46. Qc7+ {[%emt 0:00:04]} Re7 {[%emt 0:00:02]} 47. Qg3 {[%emt 0:00:01]} Qe4 {[%emt 0:00:08]} 48. Kh2 {[%emt 0:00:02]} Qc2 {[%emt 0:00:05]} 49. Bb4 {[%emt 0:00:01]} Re5 {[%emt 0:00:15]} 50. Bd6 {[%emt 0:00:02]} Re6 {[%emt 0:00:08]} 51. Bb4 {[%emt 0:00:01]} Bd7 {[%emt 0:00:24]} 52. Qf3 {[%emt 0:00:04]} Qxa2 {[%emt 0:00:08]} 53. Qg3 {[%emt 0:00:01]} Qa6 {[%emt 0:00:09]} 54. Qc7 {[%emt 0:00:04]} Qc6 {[%emt 0:00:07]} 55. Qg3 {[%emt 0:00:02]} Qb7 {[%emt 0:00:08]} 56. Bd2 {[%emt 0:00:01]} Qxb3 {[%emt 0:00:06]} 57. Qxb3 {[%emt 0:00:02]} Ke7 {[%emt 0:00:03]} 58. Bb4+ {[%emt 0:00:01]} Kf7 {[%emt 0:00:01]} 59. f3 {[%emt 0:00:01]} Ke8 {[%emt 0:00:04]} 60. Qd5 {[%emt 0:00:01]} d3 {[%emt 0:00:07]} 61. Qxd3 {[%emt 0:00:01]} g5 {[%emt 0:00:04]} 62. Qg6+ {[%emt 0:00:01]} Kd8 {[%emt 0:00:05]} 63. Qg8+ {[%emt 0:00:01]} Kc7 {[%emt 0:00:01]} 64. Qg6 {[%emt 0:00:01]} Be8 {[%emt 0:00:05]} 65. Qc2+ {[%emt 0:00:02]} Kd7 {[%emt 0:00:02]} 66. Qd3+ {[%emt 0:00:02]} Kc7 {[%emt 0:00:04]} 67. Qc4+ {[%emt 0:00:01]} Rc6 {[%emt 0:00:01]} 68. Qd5 {[%emt 0:00:01]} Bd7 {[%emt 0:00:05]} 69. Ba5+ {[%emt 0:00:01]} Kc8 {[%emt 0:00:02]} 70. Qg8+ {[%emt 0:00:02]} Kb7 {[%emt 0:00:00]} 71. Qd8 {[%emt 0:00:02]} Bc8 {[%emt 0:00:03]} 72. Qd5 {[%emt 0:00:02]} Be6 {[%emt 0:00:05]} 73. Qb5+ {[%emt 0:00:02]} Ka7 {[%emt 0:00:04]} 74. Qxc6 {[%emt 0:00:01]} Kb8 {[%emt 0:00:03]} 75. Qc7+ {[%emt 0:00:01]} Ka8 {[%emt 0:00:01]} 76. Bb6 {[%emt 0:00:01]} Bd5 {[%emt 0:00:04]} 77. Qa7# {[%emt 0:00:01]} 1-0

[Event "3rd FIDE WCCC Blitz G10 2019"]
[Site "Minsk"]
[Date "2019.08.18"]
[Round "9.1"]
[White "Khamdamova, Afruza"]
[Black "Ho, Ngoc Vy"]
[Result "0-1"]
[ECO "C77"]
[WhiteElo "1607"]
[BlackElo "1327"]
[Annotator "NA"]
[PlyCount "84"]
[EventDate "2019.08.18"]
[EventType "swiss"]
[EventCountry "BLR"]
[SourceTitle "playchess.com"]
[Source "ChessBase"]
[SourceQuality "1"]
[TimeControl "300+2"]

1. e4 {[%emt 0:00:00]} e5 {[%emt 0:00:00]} 2. Nf3 {[%emt 0:00:00]} Nc6 {[%emt 0:00:00]} 3. Bb5 {[%emt 0:00:00]} a6 {[%emt 0:00:00]} 4. Ba4 {[%emt 0:00:01]} Nf6 5. d3 b5 {[%emt 0:00:01]} 6. Bb3 {[%emt 0:00:01]} Be7 {[%emt 0:00:01]} 7. O-O {[%emt 0:00:07]} O-O {[%emt 0:00:01]} 8. c3 {[%emt 0:00:01]} d6 {[%emt 0:00:07]} 9. h3 {[%emt 0:00:02]} Re8 {[%emt 0:00:01]} 10. Nbd2 {[%emt 0:00:03]} Bf8 {[%emt 0:00:02]} 11. Re1 {[%emt 0:00:02]} g6 {[%emt 0:00:01]} 12. d4 {[%emt 0:00:14]} Bg7 {[%emt 0:00:18]} 13. Ng5 {[%emt 0:00:29]} Rf8 {[%emt 0:00:03]} 14. a4 {[%emt 0:00:38]} Bb7 {[%emt 0:00:08]} 15. Bxf7+ {[%emt 0:00:33]} Rxf7 {[%emt 0:00:03]} 16. Qb3 {[%emt 0:00:04]} Qe7 {[%emt 0:00:01]} 17. axb5 {[%emt 0:00:05]} axb5 {[%emt 0:00:15]} 18. Rxa8+ {[%emt 0:00:03]} Bxa8 {[%emt 0:00:01]} 19. Nxf7 {[%emt 0:00:16]} Qxf7 {[%emt 0:00:02]} 20. Qxb5 {[%emt 0:00:05]} exd4 {[%emt 0:00:27]} 21. cxd4 {[%emt 0:00:08]} Nd7 {[%emt 0:00:01]} 22. d5 {[%emt 0:00:05]} Nce5 {[%emt 0:00:22]} 23. Nf1 {[%emt 0:00:26]} c6 {[%emt 0:00:04]} 24. Qa6 {[%emt 0:00:04]} Qf8 {[%emt 0:00:05]} 25. f4 {[%emt 0:00:15]} Nc5 {[%emt 0:00:14]} 26. Qa7 {[%emt 0:00:24]} Ned3 {[%emt 0:00:02]} 27. Rd1 {[%emt 0:00:08]} cxd5 {[%emt 0:00:02]} 28. Be3 {[%emt 0:00:15]} d4 {[%emt 0:00:06]} 29. Bd2 {[%emt 0:00:13]} Bxe4 {[%emt 0:00:02]} 30. b4 {[%emt 0:00:08]} Ne6 {[%emt 0:00:22]} 31. Ng3 {[%emt 0:00:04]} Bd5 {[%emt 0:00:12]} 32. Rf1 {[%emt 0:00:20]} Bc4 {[%emt 0:00:02]} 33. Ne2 {[%emt 0:00:08]} Nb2 {[%emt 0:00:21]} 34. Re1 {[%emt 0:00:05]} d3 {[%emt 0:00:03]} 35. Qa3 {[%emt 0:00:20]} dxe2 {[%emt 0:00:03]} 36. Be3 {[%emt 0:00:07]} h6 {[%emt 0:00:07]} 37. b5 {[%emt 0:00:04]} Bxb5 {[%emt 0:00:03]} 38. Qb3 {[%emt 0:00:02]} Bc4 {[%emt 0:00:03]} 39. Qb4 {[%emt 0:00:05]} Nxf4 {[%emt 0:00:05]} 40. Bxf4 Qxf4 {[%emt 0:00:02]} 41. Qb8+ {[%emt 0:00:11]} Kh7 {[%emt 0:00:02]} 42. Qb4 {[%emt 0:00:05]} Nd3 {[%emt 0:00:07]} 0-1

[Event "3rd FIDE WCCC Blitz G10 2019"]
[Site "Minsk"]
[Date "2019.08.18"]
[Round "9.2"]
[White "Satanovskaia, Evgeniia"]
[Black "Nurgaliyeva, Zarina"]
[Result "1-0"]
[ECO "E46"]
[WhiteElo "1399"]
[BlackElo "1474"]
[Annotator "NA"]
[PlyCount "57"]
[EventDate "2019.08.18"]
[EventType "swiss"]
[EventCountry "BLR"]
[SourceTitle "playchess.com"]
[Source "ChessBase"]
[SourceQuality "1"]
[TimeControl "300+2"]

1. d4 {[%emt 0:00:00]} Nf6 {[%emt 0:00:00]} 2. c4 {[%emt 0:00:00]} e6 {[%emt 0:00:00]} 3. Nc3 {[%emt 0:00:01]} Bb4 {[%emt 0:00:01]} 4. e3 {[%emt 0:00:01]} O-O {[%emt 0:00:04]} 5. Nge2 {[%emt 0:00:00]} c6 {[%emt 0:00:01]} 6. a3 {[%emt 0:00:03]} Ba5 {[%emt 0:00:01]} 7. b4 {[%emt 0:00:06]} Bc7 {[%emt 0:00:01]} 8. e4 {[%emt 0:00:18]} d5 9. exd5 {[%emt 0:00:27]} exd5 {[%emt 0:00:09]} 10. c5 {[%emt 0:00:05]} Re8 {[%emt 0:00:16]} 11. Be3 {[%emt 0:00:12]} Ng4 {[%emt 0:00:07]} 12. Qd2 {[%emt 0:00:18]} Nxe3 {[%emt 0:00:02]} 13. fxe3 {[%emt 0:00:01]} Qh4+ {[%emt 0:00:03]} 14. g3 {[%emt 0:00:08]} Qe7 {[%emt 0:00:03]} 15. O-O-O {[%emt 0:00:18]} a5 {[%emt 0:00:09]} 16. b5 {[%emt 0:00:11]} b6 {[%emt 0:00:18]} 17. bxc6 {[%emt 0:00:26]} Nxc6 {[%emt 0:00:02]} 18. Nxd5 {[%emt 0:00:09]} Qd8 {[%emt 0:00:13]} 19. Nxc7 {[%emt 0:00:06]} Qxc7 {[%emt 0:00:02]} 20. Qc3 {[%emt 0:00:30]} bxc5 {[%emt 0:00:18]} 21. dxc5 {[%emt 0:00:05]} Bf5 {[%emt 0:00:17]} 22. Nd4 {[%emt 0:00:20]} Nxd4 {[%emt 0:00:03]} 23. exd4 {[%emt 0:00:10]} Rab8 {[%emt 0:00:07]} 24. Bd3 {[%emt 0:00:10]} Re3 {[%emt 0:00:05]} 25. Rhe1 {[%emt 0:00:32]} Rb1+ {[%emt 0:01:08]} 26. Kxb1 {[%emt 0:00:23]} Qb7+ {[%emt 0:00:43]} 27. Qb2 {[%emt 0:00:20]} Bxd3+ {[%emt 0:00:03]} 28. Kc1 {[%emt 0:00:06]} Rxe1 {[%emt 0:00:28]} 29. Qxb7 {[%emt 0:00:10]} 1-0